[Event "Titled Tuesday Blitz February 07 Early 2023"]
[White "Buchenau, Frank"]
[Black "Horobetz, Graham"]
[WhiteFideId "4604350"]
[BlackFideId "2047322"]
[WhiteElo "2222"]
[BlackElo "2140"]
[Result "0-1"]
[Round "03"]
[TimeControl "180+2"]
[Date "2023.02.07"]
[WhiteClock "0:00:08"]
[BlackClock "0:00:20"]

1. e4 {[%clk 0:03:00]}  c5 {[%clk 0:03:00]} 2. Nf3 {[%clk 0:03:00]}  d6 {[%clk 0:03:00]} 3. Bb5+ {[%clk 0:03:00]}  Nd7 {[%clk 0:02:59]} 4. O-O {[%clk 0:02:59]}  a6 {[%clk 0:02:56]} 5. Bd3 {[%clk 0:02:59]}  Ngf6 {[%clk 0:02:56]} 6. Re1 {[%clk 0:02:59]}  b5 {[%clk 0:02:54]} 7. c4 {[%clk 0:02:58]}  Bb7 {[%clk 0:02:53]} 8. cxb5 {[%clk 0:02:53]}  axb5 {[%clk 0:02:52]} 9. Bxb5 {[%clk 0:02:52]}  Nxe4 {[%clk 0:02:47]} 10. d4 {[%clk 0:02:43]}  e6 {[%clk 0:02:35]} 11. dxc5 {[%clk 0:02:37]}  Nxc5 {[%clk 0:02:34]} 12. Nc3 {[%clk 0:02:32]}  Be7 {[%clk 0:02:16]} 13. b4 {[%clk 0:02:22]}  Na6 {[%clk 0:02:15]} 14. Rb1 {[%clk 0:01:56]}  O-O {[%clk 0:02:07]} 15. Bf4 {[%clk 0:01:54]}  Nf6 {[%clk 0:01:59]} 16. Nd4 {[%clk 0:01:44]}  Rc8 {[%clk 0:01:49]} 17. Qd3 {[%clk 0:01:40]}  Nc7 {[%clk 0:01:30]} 18. Bc6 {[%clk 0:01:40]}  Ba8 {[%clk 0:01:19]} 19. b5 {[%clk 0:01:31]}  e5 {[%clk 0:01:10]} 20. Nf5 {[%clk 0:01:31]}  Bxc6 {[%clk 0:01:09]} 21. bxc6 {[%clk 0:01:30]}  Ne6 {[%clk 0:01:10]} 22. Nd5 {[%clk 0:00:58]}  Nxd5 {[%clk 0:01:05]} 23. Qxd5 {[%clk 0:00:58]}  Nxf4 {[%clk 0:01:01]} 24. Qe4 {[%clk 0:00:42]}  Bf6 {[%clk 0:00:40]} 25. Rb7 {[%clk 0:00:31]}  d5 {[%clk 0:00:37]} 26. Qa4 {[%clk 0:00:31]}  Qe8 {[%clk 0:00:28]} 27. Rb6 {[%clk 0:00:22]}  Qe6 {[%clk 0:00:26]} 28. Ne3 {[%clk 0:00:11]}  d4 {[%clk 0:00:26]} 29. Nc4 {[%clk 0:00:10]}  Qg4 {[%clk 0:00:26]} 30. g3 {[%clk 0:00:10]}  Nh3+ {[%clk 0:00:18]} 31. Kg2 {[%clk 0:00:09]}  Ng5 {[%clk 0:00:19]} 32. h4 {[%clk 0:00:08]}  Qh3+ {[%clk 0:00:19]} 33. Kg1 {[%clk 0:00:08]}  Nf3# {[%clk 0:00:20]} 0-1


[Site "https://www.chess.com"]

[Event "Titled Tuesday Blitz February 07 Early 2023"]
[White "Abdilkhair, Abilmansur"]
[Black "Klose, Eli"]
[WhiteFideId "13716417"]
[BlackFideId "16242955"]
[WhiteElo "2268"]
[BlackElo "1519"]
[Result "1-0"]
[Round "03"]
[TimeControl "180+2"]
[Date "2023.02.07"]
[WhiteClock "0:00:23"]
[BlackClock "0:01:41"]

1. d4 {[%clk 0:02:56]}  Nf6 {[%clk 0:02:59]} 2. c4 {[%clk 0:02:56]}  c5 {[%clk 0:03:00]} 3. d5 {[%clk 0:02:56]}  b5 {[%clk 0:02:57]} 4. Nf3 {[%clk 0:02:55]}  a6 {[%clk 0:02:58]} 5. a4 {[%clk 0:02:53]}  bxc4 {[%clk 0:02:58]} 6. Nc3 {[%clk 0:02:53]}  d6 {[%clk 0:02:59]} 7. e4 {[%clk 0:02:53]}  g6 {[%clk 0:03:00]} 8. Bxc4 {[%clk 0:02:53]}  Bg7 {[%clk 0:03:00]} 9. h3 {[%clk 0:02:54]}  O-O {[%clk 0:02:59]} 10. O-O {[%clk 0:02:54]}  Nbd7 {[%clk 0:02:58]} 11. a5 {[%clk 0:02:54]}  Ne8 {[%clk 0:02:55]} 12. Re1 {[%clk 0:02:48]}  Ne5 {[%clk 0:02:55]} 13. Nxe5 {[%clk 0:02:47]}  Bxe5 {[%clk 0:02:56]} 14. f4 {[%clk 0:02:45]}  Bd4+ {[%clk 0:02:55]} 15. Kh1 {[%clk 0:02:45]}  Nc7 {[%clk 0:02:52]} 16. Ne2 {[%clk 0:02:21]}  Bg7 {[%clk 0:02:51]} 17. Ra2 {[%clk 0:02:15]}  Bd7 {[%clk 0:02:49]} 18. Bd2 {[%clk 0:02:11]}  Bb5 {[%clk 0:02:49]} 19. b3 {[%clk 0:02:09]}  Rb8 {[%clk 0:02:48]} 20. Bc3 {[%clk 0:02:09]}  Bd7 {[%clk 0:02:45]} 21. Bxg7 {[%clk 0:02:05]}  Kxg7 {[%clk 0:02:46]} 22. e5 {[%clk 0:02:05]}  Nb5 {[%clk 0:02:31]} 23. Qa1 {[%clk 0:01:59]}  Kg8 {[%clk 0:02:28]} 24. Ng3 {[%clk 0:01:36]}  Re8 {[%clk 0:02:14]} 25. e6 {[%clk 0:01:29]}  fxe6 {[%clk 0:02:11]} 26. dxe6 {[%clk 0:01:28]}  Bc6 {[%clk 0:02:12]} 27. f5 {[%clk 0:01:27]}  Nd4 {[%clk 0:02:11]} 28. fxg6 {[%clk 0:01:21]}  hxg6 {[%clk 0:02:12]} 29. Rf2 {[%clk 0:00:58]}  Rf8 {[%clk 0:02:11]} 30. Ref1 {[%clk 0:00:53]}  Rxf2 {[%clk 0:02:09]} 31. Rxf2 {[%clk 0:00:54]}  d5 {[%clk 0:02:09]} 32. Bd3 {[%clk 0:00:53]}  Qd6 {[%clk 0:02:09]} 33. Kh2 {[%clk 0:00:45]}  Rf8 {[%clk 0:02:01]} 34. Rxf8+ {[%clk 0:00:40]}  Kxf8 {[%clk 0:01:59]} 35. Qf1+ {[%clk 0:00:41]}  Ke8 {[%clk 0:01:55]} 36. Bxg6+ {[%clk 0:00:36]}  Kd8 {[%clk 0:01:52]} 37. Qxa6 {[%clk 0:00:35]}  Ne2 {[%clk 0:01:51]} 38. Qxe2 {[%clk 0:00:34]}  d4 {[%clk 0:01:48]} 39. a6 {[%clk 0:00:31]}  Qf4 {[%clk 0:01:44]} 40. a7 {[%clk 0:00:27]}  Kc7 {[%clk 0:01:41]} 41. Be4 {[%clk 0:00:25]}  d3 {[%clk 0:01:41]} 42. Qxd3 {[%clk 0:00:23]} 1-0


[Site "https://www.chess.com"]

[Event "Titled Tuesday Blitz February 07 Early 2023"]
[White "Silvestre, Christian"]
[Black "Shapiro, Viktor"]
[WhiteFideId "30956269"]
[BlackFideId "4175700"]
[WhiteElo "1942"]
[BlackElo "2192"]
[Result "0-1"]
[Round "03"]
[TimeControl "180+2"]
[Date "2023.02.07"]
[WhiteClock "0:00:14"]
[BlackClock "0:00:54"]

1. e4 {[%clk 0:02:48]}  Nf6 {[%clk 0:03:00]} 2. e5 {[%clk 0:02:48]}  Nd5 {[%clk 0:03:00]} 3. c4 {[%clk 0:02:48]}  Nb6 {[%clk 0:03:00]} 4. d4 {[%clk 0:02:48]}  d6 {[%clk 0:03:00]} 5. f4 {[%clk 0:02:46]}  dxe5 {[%clk 0:03:00]} 6. fxe5 {[%clk 0:02:47]}  c5 {[%clk 0:03:01]} 7. d5 {[%clk 0:02:42]}  g6 {[%clk 0:02:57]} 8. Nf3 {[%clk 0:02:41]}  Bg4 {[%clk 0:02:57]} 9. Bf4 {[%clk 0:02:37]}  Bg7 {[%clk 0:02:57]} 10. Be2 {[%clk 0:02:36]}  O-O {[%clk 0:02:57]} 11. h3 {[%clk 0:02:33]}  Bxf3 {[%clk 0:02:57]} 12. Bxf3 {[%clk 0:02:19]}  Nxc4 {[%clk 0:02:57]} 13. Qe2 {[%clk 0:02:19]}  Qa5+ {[%clk 0:02:39]} 14. Nc3 {[%clk 0:02:13]}  Qb4 {[%clk 0:02:29]} 15. O-O {[%clk 0:01:56]}  Nxb2 {[%clk 0:02:29]} 16. Nb5 {[%clk 0:01:47]}  Qxf4 {[%clk 0:02:24]} 17. Nc7 {[%clk 0:01:32]}  Bxe5 {[%clk 0:02:20]} 18. Nxa8 {[%clk 0:01:32]}  Qh2+ {[%clk 0:02:02]} 19. Kf2 {[%clk 0:01:32]}  Bg3+ {[%clk 0:01:53]} 20. Ke3 {[%clk 0:01:31]}  Bf4+ {[%clk 0:01:53]} 21. Kf2 {[%clk 0:01:30]}  c4 {[%clk 0:01:47]} 22. Qxb2 {[%clk 0:01:24]}  Be5 {[%clk 0:01:44]} 23. Qxb7 {[%clk 0:01:19]}  Qg3+ {[%clk 0:01:43]} 24. Ke2 {[%clk 0:01:19]}  Bxa1 {[%clk 0:01:42]} 25. Qxe7 {[%clk 0:01:04]}  Be5 {[%clk 0:01:34]} 26. Qxa7 {[%clk 0:00:45]}  Nd7 {[%clk 0:01:25]} 27. Qxd7 {[%clk 0:00:43]}  Rxa8 {[%clk 0:01:25]} 28. a4 {[%clk 0:00:42]}  Rb8 {[%clk 0:01:22]} 29. Qg4 {[%clk 0:00:24]}  Rb2+ {[%clk 0:01:16]} 30. Kd1 {[%clk 0:00:24]}  Qh2 {[%clk 0:01:05]} 31. Qxc4 {[%clk 0:00:21]}  Bf4 {[%clk 0:00:56]} 32. a5 {[%clk 0:00:16]}  Rd2+ {[%clk 0:00:57]} 33. Kc1 {[%clk 0:00:14]}  Rd4+ {[%clk 0:00:54]} 0-1


[Site "https://www.chess.com"]

[Event "Titled Tuesday Blitz February 07 Early 2023"]
[White "Rosenberg, Evan S"]
[Black "Czernek, Tymon"]
[WhiteFideId "2019299"]
[BlackFideId "1199510"]
[WhiteElo "1956"]
[BlackElo "2314"]
[Result "0-1"]
[Round "03"]
[TimeControl "180+2"]
[Date "2023.02.07"]
[WhiteClock "0:00:03"]
[BlackClock "0:00:51"]

1. d4 {[%clk 0:03:00]}  d5 {[%clk 0:02:54]} 2. Nf3 {[%clk 0:03:01]}  Nf6 {[%clk 0:02:50]} 3. c3 {[%clk 0:03:01]}  e6 {[%clk 0:02:50]} 4. Bf4 {[%clk 0:03:01]}  c5 {[%clk 0:02:50]} 5. e3 {[%clk 0:02:59]}  Nc6 {[%clk 0:02:50]} 6. Nbd2 {[%clk 0:02:57]}  Qb6 {[%clk 0:02:46]} 7. Rb1 {[%clk 0:02:51]}  Bd7 {[%clk 0:02:40]} 8. Bd3 {[%clk 0:02:50]}  h6 {[%clk 0:02:37]} 9. O-O {[%clk 0:02:49]}  Nh5 {[%clk 0:02:36]} 10. Bg3 {[%clk 0:02:32]}  Nxg3 {[%clk 0:02:34]} 11. hxg3 {[%clk 0:02:33]}  Be7 {[%clk 0:02:34]} 12. Re1 {[%clk 0:02:30]}  cxd4 {[%clk 0:02:30]} 13. exd4 {[%clk 0:02:30]}  O-O-O {[%clk 0:02:20]} 14. b4 {[%clk 0:02:17]}  g5 {[%clk 0:02:16]} 15. a4 {[%clk 0:02:16]}  h5 {[%clk 0:02:09]} 16. a5 {[%clk 0:02:17]}  Qc7 {[%clk 0:02:09]} 17. b5 {[%clk 0:02:15]}  Nxa5 {[%clk 0:02:08]} 18. Ne5 {[%clk 0:02:16]}  Be8 {[%clk 0:02:00]} 19. b6 {[%clk 0:02:16]}  axb6 {[%clk 0:01:59]} 20. Qf3 {[%clk 0:01:48]}  f6 {[%clk 0:01:57]} 21. Ng6 {[%clk 0:01:45]}  Bxg6 {[%clk 0:01:54]} 22. Bxg6 {[%clk 0:01:46]}  h4 {[%clk 0:01:44]} 23. Rxe6 {[%clk 0:01:43]}  hxg3 {[%clk 0:01:44]} 24. fxg3 {[%clk 0:01:43]}  Bd6 {[%clk 0:01:39]} 25. Rxf6 {[%clk 0:01:05]}  Bxg3 {[%clk 0:01:25]} 26. Rf7 {[%clk 0:00:55]}  Qd6 {[%clk 0:01:06]} 27. Nf1 {[%clk 0:00:20]}  Bh2+ {[%clk 0:00:58]} 28. Nxh2 {[%clk 0:00:19]}  Qxh2+ {[%clk 0:00:58]} 29. Kf2 {[%clk 0:00:19]}  Nc4 {[%clk 0:00:54]} 30. Qg3 {[%clk 0:00:14]}  Qxg3+ {[%clk 0:00:53]} 31. Kxg3 {[%clk 0:00:15]}  Rde8 {[%clk 0:00:52]} 32. Bf5+ {[%clk 0:00:13]}  Kb8 {[%clk 0:00:51]} 33. Bd3 {[%clk 0:00:09]}  Re3+ {[%clk 0:00:51]} 34. Rf3 {[%clk 0:00:09]}  Rxf3+ {[%clk 0:00:51]} 35. gxf3 {[%clk 0:00:09]}  Kc7 {[%clk 0:00:50]} 36. Bxc4 {[%clk 0:00:09]}  dxc4 {[%clk 0:00:51]} 37. Rb5 {[%clk 0:00:09]}  Re8 {[%clk 0:00:50]} 38. Rxg5 {[%clk 0:00:09]}  Re3 {[%clk 0:00:51]} 39. Rg7+ {[%clk 0:00:07]}  Kc6 {[%clk 0:00:50]} 40. Rg6+ {[%clk 0:00:07]}  Kb5 {[%clk 0:00:50]} 41. Kf4 {[%clk 0:00:06]}  Rxc3 {[%clk 0:00:51]} 42. Ke4 {[%clk 0:00:06]}  Rc1 {[%clk 0:00:51]} 43. d5 {[%clk 0:00:06]}  Rd1 {[%clk 0:00:50]} 44. Rg2 {[%clk 0:00:04]}  c3 {[%clk 0:00:50]} 45. Rc2 {[%clk 0:00:03]}  Kc4 {[%clk 0:00:50]} 46. Ke3 {[%clk 0:00:02]}  b5 {[%clk 0:00:50]} 47. Ke2 {[%clk 0:00:02]}  Rxd5 {[%clk 0:00:50]} 48. f4 {[%clk 0:00:02]}  b4 {[%clk 0:00:51]} 49. f5 {[%clk 0:00:02]}  b3 {[%clk 0:00:51]} 50. Rxc3+ {[%clk 0:00:03]} 0-1


[Site "https://www.chess.com"]

[Event "Titled Tuesday Blitz February 07 Early 2023"]
[White "Szyszylo, Rafal"]
[Black "Korchmar, Vasiliy"]
[WhiteFideId "1109626"]
[BlackFideId "24131750"]
[WhiteElo "2091"]
[BlackElo "2438"]
[Result "0-1"]
[Round "03"]
[TimeControl "180+2"]
[Date "2023.02.07"]
[WhiteClock "0:00:04"]
[BlackClock "0:00:03"]

1. e4 {[%clk 0:03:00]}  c5 {[%clk 0:03:00]} 2. Nf3 {[%clk 0:03:00]}  d6 {[%clk 0:03:00]} 3. d4 {[%clk 0:02:59]}  cxd4 {[%clk 0:03:01]} 4. Nxd4 {[%clk 0:03:00]}  Nf6 {[%clk 0:03:02]} 5. Nc3 {[%clk 0:03:01]}  Nc6 {[%clk 0:03:02]} 6. Bc4 {[%clk 0:02:59]}  Qb6 {[%clk 0:03:02]} 7. Nb3 {[%clk 0:02:58]}  e6 {[%clk 0:03:02]} 8. Be3 {[%clk 0:02:57]}  Qc7 {[%clk 0:03:02]} 9. Be2 {[%clk 0:02:54]}  a6 {[%clk 0:03:02]} 10. g4 {[%clk 0:02:53]}  h6 {[%clk 0:02:59]} 11. h4 {[%clk 0:02:52]}  b5 {[%clk 0:02:59]} 12. a3 {[%clk 0:02:47]}  Ne5 {[%clk 0:02:49]} 13. Rg1 {[%clk 0:02:25]}  Bb7 {[%clk 0:02:49]} 14. Qd4 {[%clk 0:02:02]}  Nc4 {[%clk 0:02:10]} 15. Bxc4 {[%clk 0:02:01]}  bxc4 {[%clk 0:01:59]} 16. Nd2 {[%clk 0:02:00]}  e5 {[%clk 0:01:30]} 17. Qxc4 {[%clk 0:01:51]}  Qxc4 {[%clk 0:01:30]} 18. Nxc4 {[%clk 0:01:52]}  Nxe4 {[%clk 0:01:31]} 19. Nxe4 {[%clk 0:01:52]}  Bxe4 {[%clk 0:01:32]} 20. O-O-O {[%clk 0:01:48]}  Rc8 {[%clk 0:01:16]} 21. Nxd6+ {[%clk 0:01:25]}  Bxd6 {[%clk 0:01:14]} 22. Rxd6 {[%clk 0:01:25]}  Rxc2+ {[%clk 0:01:13]} 23. Kd1 {[%clk 0:01:26]}  Rxb2 {[%clk 0:01:06]} 24. Bc1 {[%clk 0:00:44]}  Rxf2 {[%clk 0:00:57]} 25. Rd2 {[%clk 0:00:39]}  Bf3+ {[%clk 0:00:48]} 26. Ke1 {[%clk 0:00:39]}  Rxd2 {[%clk 0:00:49]} 27. Kxd2 {[%clk 0:00:28]}  O-O {[%clk 0:00:49]} 28. Ke3 {[%clk 0:00:27]}  e4 {[%clk 0:00:43]} 29. g5 {[%clk 0:00:24]}  h5 {[%clk 0:00:40]} 30. g6 {[%clk 0:00:23]}  Rd8 {[%clk 0:00:27]} 31. gxf7+ {[%clk 0:00:21]}  Kxf7 {[%clk 0:00:28]} 32. Kf4 {[%clk 0:00:20]}  Rb8 {[%clk 0:00:19]} 33. Rg5 {[%clk 0:00:20]}  Rb1 {[%clk 0:00:17]} 34. Be3 {[%clk 0:00:19]}  Rh1 {[%clk 0:00:17]} 35. Ra5 {[%clk 0:00:16]}  Rxh4+ {[%clk 0:00:16]} 36. Kf5 {[%clk 0:00:16]}  g6+ {[%clk 0:00:10]} 37. Ke5 {[%clk 0:00:15]}  Rh1 {[%clk 0:00:07]} 38. Rxa6 {[%clk 0:00:14]}  h4 {[%clk 0:00:05]} 39. Ra7+ {[%clk 0:00:09]}  Ke8 {[%clk 0:00:04]} 40. Bg5 {[%clk 0:00:08]}  Rb1 {[%clk 0:00:02]} 41. Bxh4 {[%clk 0:00:06]}  Rb5+ {[%clk 0:00:03]} 42. Kd6 {[%clk 0:00:05]}  Rb6+ {[%clk 0:00:03]} 43. Ke5 {[%clk 0:00:05]}  e3 {[%clk 0:00:03]} 44. Bf6 {[%clk 0:00:03]}  e2 {[%clk 0:00:02]} 45. Re7+ {[%clk 0:00:04]}  Kf8 {[%clk 0:00:03]} 0-1


[Site "https://www.chess.com"]

[Event "Titled Tuesday Blitz February 07 Early 2023"]
[White "Skurikhin, Dmitrij"]
[Black "Yaran, Siar"]
[WhiteFideId "4161297"]
[BlackFideId "6323006"]
[WhiteElo "2297"]
[BlackElo "2288"]
[Result "1-0"]
[Round "03"]
[TimeControl "180+2"]
[Date "2023.02.07"]
[WhiteClock "0:00:07"]
[BlackClock "0:00:08"]

1. e4 {[%clk 0:03:00]}  e5 {[%clk 0:02:58]} 2. Nf3 {[%clk 0:02:58]}  Nc6 {[%clk 0:02:58]} 3. Bc4 {[%clk 0:02:44]}  Bc5 {[%clk 0:02:57]} 4. d3 {[%clk 0:02:42]}  Nf6 {[%clk 0:02:57]} 5. O-O {[%clk 0:02:41]}  d6 {[%clk 0:02:58]} 6. h3 {[%clk 0:02:41]}  h6 {[%clk 0:02:56]} 7. c3 {[%clk 0:02:40]}  Bb6 {[%clk 0:02:55]} 8. a4 {[%clk 0:02:39]}  a6 {[%clk 0:02:54]} 9. Be3 {[%clk 0:02:38]}  g5 {[%clk 0:02:52]} 10. Bxb6 {[%clk 0:02:36]}  cxb6 {[%clk 0:02:53]} 11. d4 {[%clk 0:02:30]}  g4 {[%clk 0:02:49]} 12. dxe5 {[%clk 0:02:28]}  gxf3 {[%clk 0:02:48]} 13. exf6 {[%clk 0:02:27]}  fxg2 {[%clk 0:02:39]} 14. Re1 {[%clk 0:02:27]}  Qxf6 {[%clk 0:02:37]} 15. e5 {[%clk 0:02:21]}  Nxe5 {[%clk 0:02:30]} 16. f4 {[%clk 0:02:17]}  Qxf4 {[%clk 0:02:15]} 17. Qxd6 {[%clk 0:02:16]}  f6 {[%clk 0:02:13]} 18. Nd2 {[%clk 0:02:01]}  Bd7 {[%clk 0:02:12]} 19. Qxb6 {[%clk 0:01:20]}  Bc6 {[%clk 0:02:08]} 20. Qc7 {[%clk 0:01:00]}  Rf8 {[%clk 0:01:13]} 21. Re2 {[%clk 0:00:14]}  Be4 {[%clk 0:00:20]} 22. Rxe4 {[%clk 0:00:08]}  Qxd2 {[%clk 0:00:19]} 23. Rae1 {[%clk 0:00:07]}  Rh8 {[%clk 0:00:08]} 24. Rxe5+ {[%clk 0:00:07]} 1-0


[Site "https://www.chess.com"]

[Event "Titled Tuesday Blitz February 07 Early 2023"]
[White "Djokovic, Nebojsa"]
[Black "Rose, Felix"]
[WhiteFideId "938300"]
[BlackFideId "5105722"]
[WhiteElo "2119"]
[BlackElo "2091"]
[Result "1-0"]
[Round "03"]
[TimeControl "180+2"]
[Date "2023.02.07"]
[WhiteClock "0:01:11"]
[BlackClock "0:00:11"]

1. c4 {[%clk 0:03:00]}  e6 {[%clk 0:02:59]} 2. Nf3 {[%clk 0:03:01]}  d5 {[%clk 0:03:00]} 3. g3 {[%clk 0:03:01]}  Nf6 {[%clk 0:03:00]} 4. d4 {[%clk 0:03:00]}  dxc4 {[%clk 0:02:59]} 5. Bg2 {[%clk 0:02:58]}  a6 {[%clk 0:03:00]} 6. O-O {[%clk 0:02:45]}  Nc6 {[%clk 0:03:00]} 7. a4 {[%clk 0:02:42]}  Rb8 {[%clk 0:02:57]} 8. e3 {[%clk 0:02:40]}  Bd7 {[%clk 0:02:55]} 9. Nbd2 {[%clk 0:02:40]}  b5 {[%clk 0:02:36]} 10. axb5 {[%clk 0:02:40]}  axb5 {[%clk 0:02:36]} 11. Ng5 {[%clk 0:02:18]}  Be7 {[%clk 0:02:07]} 12. b3 {[%clk 0:02:08]}  c3 {[%clk 0:01:57]} 13. Nde4 {[%clk 0:02:08]}  Nxe4 {[%clk 0:01:54]} 14. Nxe4 {[%clk 0:02:08]}  b4 {[%clk 0:01:52]} 15. Ra6 {[%clk 0:02:04]}  O-O {[%clk 0:01:29]} 16. Qh5 {[%clk 0:01:59]}  Qc8 {[%clk 0:00:45]} 17. Ra1 {[%clk 0:01:50]}  f5 {[%clk 0:00:26]} 18. Ng5 {[%clk 0:01:43]}  h6 {[%clk 0:00:25]} 19. Nxe6 {[%clk 0:01:43]}  Bxe6 {[%clk 0:00:21]} 20. Bxc6 {[%clk 0:01:42]}  Bf7 {[%clk 0:00:17]} 21. Qd1 {[%clk 0:01:40]}  Qe6 {[%clk 0:00:17]} 22. d5 {[%clk 0:01:38]}  Qe4 {[%clk 0:00:17]} 23. f3 {[%clk 0:01:36]}  Qe5 {[%clk 0:00:17]} 24. Qd4 {[%clk 0:01:32]}  Qxd4 {[%clk 0:00:17]} 25. exd4 {[%clk 0:01:33]}  Bf6 {[%clk 0:00:17]} 26. Bf4 {[%clk 0:01:31]}  Bxd4+ {[%clk 0:00:17]} 27. Kg2 {[%clk 0:01:31]}  Rbd8 {[%clk 0:00:16]} 28. Bxc7 {[%clk 0:01:30]}  Rxd5 {[%clk 0:00:14]} 29. Bxd5 {[%clk 0:01:28]}  Bxd5 {[%clk 0:00:14]} 30. Rad1 {[%clk 0:01:19]}  Bxb3 {[%clk 0:00:12]} 31. Rxd4 {[%clk 0:01:19]}  Rc8 {[%clk 0:00:13]} 32. Rxb4 {[%clk 0:01:15]}  Bf7 {[%clk 0:00:13]} 33. Rb8 {[%clk 0:01:10]}  Rxb8 {[%clk 0:00:11]} 34. Bxb8 {[%clk 0:01:11]}  Bc4 {[%clk 0:00:11]} 35. Rc1 {[%clk 0:01:11]} 1-0


[Site "https://www.chess.com"]

[Event "Titled Tuesday Blitz February 07 Early 2023"]
[White "Ambartsumova, Karina"]
[Black "Rudzinska, Michalina"]
[WhiteFideId "4166299"]
[BlackFideId "1172883"]
[WhiteElo "2393"]
[BlackElo "2244"]
[Result "0-1"]
[Round "03"]
[TimeControl "180+2"]
[Date "2023.02.07"]
[WhiteClock "0:00:02"]
[BlackClock "0:01:01"]

1. Nf3 {[%clk 0:03:00]}  c5 {[%clk 0:02:55]} 2. c4 {[%clk 0:03:00]}  Nc6 {[%clk 0:02:54]} 3. d4 {[%clk 0:03:00]}  cxd4 {[%clk 0:02:54]} 4. Nxd4 {[%clk 0:03:01]}  e6 {[%clk 0:02:54]} 5. Nc3 {[%clk 0:02:57]}  Nf6 {[%clk 0:02:54]} 6. a3 {[%clk 0:02:57]}  Qc7 {[%clk 0:02:53]} 7. e4 {[%clk 0:02:55]}  a6 {[%clk 0:02:52]} 8. Be3 {[%clk 0:02:53]}  Be7 {[%clk 0:02:51]} 9. Rc1 {[%clk 0:02:53]}  Nxd4 {[%clk 0:02:50]} 10. Bxd4 {[%clk 0:02:49]}  d6 {[%clk 0:02:50]} 11. Be2 {[%clk 0:02:47]}  O-O {[%clk 0:02:49]} 12. O-O {[%clk 0:02:42]}  b6 {[%clk 0:02:49]} 13. f4 {[%clk 0:02:43]}  Bb7 {[%clk 0:02:49]} 14. Bf3 {[%clk 0:02:43]}  Nd7 {[%clk 0:02:48]} 15. Qe2 {[%clk 0:02:38]}  Rac8 {[%clk 0:02:41]} 16. Rfd1 {[%clk 0:01:58]}  Rfd8 {[%clk 0:02:35]} 17. b3 {[%clk 0:01:28]}  Qb8 {[%clk 0:02:28]} 18. f5 {[%clk 0:01:20]}  e5 {[%clk 0:02:19]} 19. Be3 {[%clk 0:01:20]}  Nc5 {[%clk 0:02:14]} 20. Bxc5 {[%clk 0:01:07]}  bxc5 {[%clk 0:02:08]} 21. Rb1 {[%clk 0:01:03]}  Qc7 {[%clk 0:02:02]} 22. Bg4 {[%clk 0:00:45]}  Bf6 {[%clk 0:01:53]} 23. g3 {[%clk 0:00:37]}  Qa5 {[%clk 0:01:51]} 24. Qb2 {[%clk 0:00:14]}  Bc6 {[%clk 0:01:48]} 25. Bf3 {[%clk 0:00:14]}  Rb8 {[%clk 0:01:46]} 26. b4 {[%clk 0:00:14]}  cxb4 {[%clk 0:01:45]} 27. axb4 {[%clk 0:00:15]}  Qc7 {[%clk 0:01:42]} 28. Kg2 {[%clk 0:00:15]}  a5 {[%clk 0:01:39]} 29. b5 {[%clk 0:00:15]}  Ba8 {[%clk 0:01:37]} 30. Qa2 {[%clk 0:00:14]}  Rdc8 {[%clk 0:01:35]} 31. Be2 {[%clk 0:00:13]}  Bg5 {[%clk 0:01:31]} 32. Rb2 {[%clk 0:00:10]}  Be3 {[%clk 0:01:29]} 33. Rc2 {[%clk 0:00:10]}  Bd4 {[%clk 0:01:29]} 34. Nd5 {[%clk 0:00:10]}  Bxd5 {[%clk 0:01:28]} 35. exd5 {[%clk 0:00:11]}  Qd7 {[%clk 0:01:25]} 36. Bd3 {[%clk 0:00:11]}  Qd8 {[%clk 0:01:20]} 37. Rf1 {[%clk 0:00:10]}  f6 {[%clk 0:01:17]} 38. Qa4 {[%clk 0:00:10]}  Bb6 {[%clk 0:01:17]} 39. Qb3 {[%clk 0:00:10]}  Qc7 {[%clk 0:01:17]} 40. Ra2 {[%clk 0:00:08]}  Ra8 {[%clk 0:01:17]} 41. Qd1 {[%clk 0:00:09]}  Qc5 {[%clk 0:01:17]} 42. Qe2 {[%clk 0:00:08]}  a4 {[%clk 0:01:17]} 43. Rfa1 {[%clk 0:00:08]}  a3 {[%clk 0:01:16]} 44. Qc2 {[%clk 0:00:08]}  Ra7 {[%clk 0:01:12]} 45. Qb3 {[%clk 0:00:08]}  Rca8 {[%clk 0:01:13]} 46. Qc2 {[%clk 0:00:08]}  Qb4 {[%clk 0:01:11]} 47. Qe2 {[%clk 0:00:08]}  Bd4 {[%clk 0:01:11]} 48. Rb1 {[%clk 0:00:08]}  Bb2 {[%clk 0:01:10]} 49. h4 {[%clk 0:00:08]}  Qb3 {[%clk 0:01:10]} 50. Raxb2 {[%clk 0:00:08]}  axb2 {[%clk 0:01:10]} 51. Rxb2 {[%clk 0:00:09]}  Qxb2 {[%clk 0:01:08]} 52. Qxb2 {[%clk 0:00:09]}  Ra2 {[%clk 0:01:08]} 53. Qxa2 {[%clk 0:00:08]}  Rxa2+ {[%clk 0:01:08]} 54. Kf3 {[%clk 0:00:08]}  Rb2 {[%clk 0:01:07]} 55. g4 {[%clk 0:00:08]}  Kf8 {[%clk 0:01:07]} 56. g5 {[%clk 0:00:07]}  Ke7 {[%clk 0:01:06]} 57. gxf6+ {[%clk 0:00:05]}  gxf6 {[%clk 0:01:07]} 58. Kg4 {[%clk 0:00:06]}  Rb3 {[%clk 0:01:04]} 59. Be2 {[%clk 0:00:03]}  Re3 {[%clk 0:01:03]} 60. Bd1 {[%clk 0:00:04]}  Re4+ {[%clk 0:01:02]} 61. Kh5 {[%clk 0:00:04]}  Rxc4 {[%clk 0:01:03]} 62. Be2 {[%clk 0:00:03]}  Rb4 {[%clk 0:01:03]} 63. Bd3 {[%clk 0:00:02]}  Kd7 {[%clk 0:01:02]} 64. Kh6 {[%clk 0:00:02]}  Rxh4+ {[%clk 0:01:01]} 65. Kg7 {[%clk 0:00:02]}  e4 {[%clk 0:01:01]} 66. Be2 {[%clk 0:00:02]}  e3 {[%clk 0:01:01]} 67. Kxf6 {[%clk 0:00:02]}  Rh2 {[%clk 0:01:01]} 68. Bc4 {[%clk 0:00:01]}  e2 {[%clk 0:01:01]} 69. Bxe2 {[%clk 0:00:01]}  Rxe2 {[%clk 0:01:02]} 70. Kg7 {[%clk 0:00:02]}  Rf2 {[%clk 0:01:00]} 71. f6 {[%clk 0:00:02]}  h5 {[%clk 0:01:01]} 72. f7 {[%clk 0:00:02]}  h4 {[%clk 0:01:01]} 73. b6 {[%clk 0:00:02]}  h3 {[%clk 0:01:01]} 74. b7 {[%clk 0:00:02]}  Kc7 {[%clk 0:01:01]} 0-1


[Site "https://www.chess.com"]